bitfinex-derivatives/quotes_SOLF0:USTF0_20241230
["timestamp","ask_amount","ask_price","bid_price","bid_amount"]
[1735532351737,2.6134,191.79,191.75,4.66935686]
[1735532351935,2.6134,191.79,191.74,8.37826675]
[1735532352139,2.6134,191.79,191.75,4.6685191]
[1735532352340,2.6134,191.79,191.74,8.37826675]
[1735532352638,2.6134,191.79,191.75,4.66846727]
[1735532352835,2.6134,191.79,191.74,10.99226675]
[1735532353144,2.6134,191.79,191.75,4.66781095]
[1735532353444,2.6134,191.79,191.74,10.99226675]
[1735532353647,2.6134,191.79,191.75,4.66733931]
[1735532353835,2.6134,191.79,191.74,10.99226675]
[1735532354040,2.6134,191.79,191.75,4.66728639]
[1735532354343,2.6134,191.79,191.74,10.99226675]
[1735532354645,2.6134,191.79,191.75,4.66725118]
[1735532354847,2.6134,191.79,191.74,10.99226675]
[1735532355147,2.6134,191.79,191.75,4.66685733]
[1735532355347,8.37826675,191.8,191.69,3.69123104]
[1735532355545,2.6136,191.77,191.74,8.37826675]
[1735532356244,2.6135,191.78,191.74,8.37826675]
[1735532357449,8.37826675,191.8,191.74,8.37826675]
[1735532357649,8.37826675,191.78,191.72,8.37826675]
[1735532357842,8.37826675,191.78,191.73,4.66569639]
[1735532358045,8.37826675,191.78,191.72,8.37826675]
[1735532358245,2.6139,191.76,191.73,4.66571609]
[1735532358445,2.6139,191.76,191.72,8.37826675]
[1735532358646,2.6139,191.76,191.73,4.66511969]
[1735532358846,2.6139,191.75,191.72,8.37826675]
[1735532359047,2.6139,191.75,191.73,4.66511969]
[1735532359246,2.6139,191.75,191.72,8.37826675]
[1735532359547,2.6139,191.75,191.73,4.66510278]
[1735532359748,2.6139,191.75,191.72,8.37826675]
[1735532359951,2.6139,191.75,191.73,4.6645852]
[1735532360152,2.6139,191.75,191.72,8.37826675]
[1735532360351,2.6139,191.75,191.73,4.6645852]
[1735532360651,2.6139,191.75,191.72,8.37826675]
[1735532360847,2.6139,191.75,191.73,4.66413878]
[1735532361046,2.6139,191.75,191.72,8.37826675]
[1735532361350,2.6138,191.77,191.73,7.27823878]
[1735532361549,8.37826675,191.8,191.74,8.37826675]
[1735532361851,8.37826675,191.8,191.75,4.66334383]
[1735532362047,2.6136,191.78,191.74,10.99216675]
[1735532362349,2.96,191.86,191.76,8.37826675]
[1735532362651,8.37826675,191.84,191.78,8.37826675]
[1735532363052,2.613,191.82,191.78,8.37826675]
[1735532363253,8.37826675,191.84,191.78,8.37826675]
[1735532363649,2.6132,191.81,191.78,8.37826675]
[1735532364248,8.37826675,191.84,191.78,8.37826675]
[1735532364455,2.613,191.82,191.78,10.99176675]
[1735532364748,8.37826675,191.86,191.78,8.37826675]
[1735532364953,8.37826675,191.86,191.79,4.66263779]
[1735532365149,2.6129,191.83,191.79,2.6133]
[1735532365354,2.6129,191.83,191.78,8.37826675]
[1735532365552,2.6129,191.83,191.79,4.6627232]
[1735532365750,2.6129,191.83,191.78,10.99176675]
[1735532365950,2.6127,191.84,191.8,8.37826675]
[1735532367251,2.6124,191.86,191.82,10.99116675]
[1735532367946,2.6124,191.86,191.82,8.37826675]
[1735532368149,2.6126,191.85,191.82,8.37826675]
[1735532370457,99.21096746,191.88,191.8,11.33826675]
[1735532370650,2.613,191.82,191.8,2.96]
[1735532370846,8.37826675,191.84,191.77,11.54746675]
[1735532372551,2.6132,191.81,191.77,11.54746675]
[1735532372750,8.37826675,191.84,191.77,11.54746675]
[1735532373156,2.6133,191.8,191.77,3.1692]
[1735532373552,2.6133,191.8,191.77,11.54746675]
[1735532374055,2.6129,191.83,191.78,7.27796772]
[1735532374355,2.6129,191.83,191.79,4.66446772]
[1735532374650,2.6129,191.83,191.78,2.6135]
[1735532374856,2.6129,191.83,191.79,13.0429899]
[1735532375052,2.6129,191.83,191.79,8.37826675]
[1735532375756,2.6129,191.83,191.79,10.99156675]
[1735532376055,2.6128,191.84,191.8,4.66489401]
[1735532376256,2.6128,191.84,191.79,10.99156675]
[1735532376450,2.6128,191.84,191.8,4.66469213]
[1735532376659,2.6128,191.84,191.79,10.99156675]
[1735532376852,2.6128,191.84,191.8,4.66470027]
[1735532377052,2.6128,191.83,191.81,4.6646474]
[1735532377248,2.6128,191.83,191.79,10.99156675]
[1735532377449,2.6128,191.83,191.8,8.76738652]
[1735532377655,2.6128,191.83,191.81,4.66459453]
[1735532377851,2.6128,191.83,191.79,10.99156675]
[1735532378059,2.6128,191.83,191.8,8.76716894]
[1735532378359,2.6129,191.82,191.79,8.37826675]
[1735532378550,8.37826675,191.86,191.8,4.66458872]
[1735532378754,8.37826675,191.86,191.79,8.37826675]
[1735532379755,2.613,191.82,191.79,8.37826675]
[1735532380353,2.6128,191.83,191.8,4.66473717]
[1735532380565,2.6128,191.83,191.79,8.37826675]
[1735532380767,2.6128,191.83,191.8,4.66444711]
[1735532381068,2.6128,191.83,191.79,8.37826675]
[1735532381267,2.613,191.82,191.8,4.66449463]
[1735532381466,2.613,191.82,191.79,8.37826675]
[1735532381764,2.613,191.82,191.8,4.66434619]
[1735532381969,2.6128,191.84,191.79,8.37826675]
[1735532382172,2.6128,191.84,191.8,8.76683507]
[1735532382367,2.6128,191.84,191.81,4.66430386]
[1735532382567,2.6128,191.84,191.79,8.37826675]
[1735532382893,2.6128,191.84,191.8,7.27764945]
[1735532383079,2.6128,191.84,191.8,2.6132]
[1735532384368,2.6128,191.84,191.79,8.37826675]
[1735532384570,2.6128,191.84,191.8,4.66489504]
[1735532384766,2.6128,191.84,191.79,10.99156675]
[1735532384971,2.6128,191.84,191.8,4.6648598]
[1735532385172,2.6128,191.84,191.81,4.6648598]
[1735532385375,2.6128,191.84,191.79,10.99156675]
[1735532385673,2.6128,191.84,191.8,4.66493024]
[1735532385971,2.6128,191.84,191.81,4.66479777]
[1735532386174,8.37826675,191.86,191.79,8.37826675]
[1735532386367,8.37826675,191.86,191.8,4.66494087]
[1735532386567,8.37826675,191.86,191.79,8.37826675]
[1735532387671,2.6131,191.81,191.79,8.37826675]
[1735532389368,2.6131,191.81,191.8,4.66623708]
[1735532390072,90.83270071,191.88,191.8,8.77060358]
[1735532390274,90.83270071,191.88,191.82,8.37826675]
[1735532391476,2.6126,191.85,191.82,8.37826675]
[1735532391878,90.83270071,191.88,191.82,8.37826675]
[1735532392174,90.83270071,191.88,191.8,2.96]
[1735532392371,90.83270071,191.88,191.85,8.37826675]
[1735532393473,93.44490071,191.88,191.85,8.37826675]
[1735532395576,90.83270071,191.88,191.85,8.37826675]
[1735532395772,2.6123,191.87,191.83,10.99106675]
[1735532395973,2.6123,191.87,191.84,4.66631735]
[1735532396169,99.21096746,191.88,191.81,8.37826675]
[1735532396370,99.21096746,191.88,191.82,4.66642839]
[1735532396580,8.37826675,191.86,191.8,11.33826675]
[1735532396872,8.37826675,191.86,191.8,2.96]
[1735532397676,2.6129,191.83,191.8,2.96]
[1735532397878,8.37826675,191.86,191.81,4.66799934]
[1735532398081,8.37826675,191.86,191.8,2.96]
[1735532398378,8.37826675,191.86,191.81,8.37826675]
[1735532399081,2.6128,191.84,191.81,8.37826675]
[1735532399482,2.6128,191.84,191.82,4.66859686]
[1735532399683,2.6128,191.84,191.81,8.37826675]
[1735532399878,2.6128,191.84,191.82,4.66855969]
[1735532400080,2.6128,191.84,191.81,8.37826675]
[1735532400275,90.83270071,191.88,191.83,8.37826675]
[1735532400481,90.83270071,191.88,191.84,4.66834509]
[1735532400680,90.83270071,191.88,191.83,8.37826675]
[1735532400880,2.6124,191.87,191.83,10.99096675]
[1735532401086,2.6124,191.87,191.84,4.66860131]
[1735532401281,2.6124,191.87,191.83,10.99096675]
[1735532401481,2.6124,191.87,191.84,4.66861382]
[1735532401682,2.6124,191.87,191.83,8.37826675]
[1735532401885,2.6125,191.85,191.84,4.66944591]
[1735532402092,8.37826675,191.86,191.81,8.37826675]
[1735532402290,8.37826675,191.86,191.82,4.66959028]
[1735532402592,2.6129,191.83,191.81,8.37826675]
[1735532402788,2.6129,191.83,191.82,4.6705553]
[1735532403590,8.37826675,191.86,191.81,8.37826675]
[1735532403781,8.37826675,191.86,191.82,4.6719923]
[1735532403987,8.37826675,191.86,191.81,8.37826675]
[1735532404188,8.37826675,191.86,191.82,4.67201184]
[1735532404391,2.6129,191.82,191.81,8.37826675]
[1735532404598,2.6129,191.82,191.81,17.16240661]
[1735532406695,2.6129,191.82,191.81,12.48889441]
[1735532406896,99.21096746,191.88,191.81,19.77916239]
[1735532407100,90.83270071,191.88,191.83,8.37826675]
[1735532407393,90.83270071,191.88,191.85,8.37826675]
[1735532407594,2.6123,191.87,191.86,4.67726798]
[1735532409393,5.0584682,191.9,191.86,2.6123]
[1735532409598,5.0584682,191.9,191.87,17.16613233]
[1735532409799,5.0584682,191.9,191.88,4.1124211]
[1735532410096,5.0584682,191.9,191.89,4.67539324]
[1735532410493,7.6703682,191.9,191.89,4.67377374]
[1735532411997,5.0584682,191.9,191.89,4.67377374]
[1735532412201,2.6115,191.93,191.89,19.77348187]
[1735532412401,2.6115,191.93,191.91,8.37826675]
[1735532413795,7.19418189,192.0,191.92,4.66746025]
[1735532413796,2.6112,191.95,191.92,4.66746025]
[1735532413999,2.6112,191.95,191.91,8.37826675]
[1735532414199,2.6112,191.95,191.92,4.66745446]
[1735532414394,2.6112,191.95,191.91,8.37826675]
[1735532414600,2.6111,191.96,191.92,2.6115]
[1735532415205,2.6111,191.96,191.93,4.6643571]
[1735532415397,2.6111,191.96,191.92,2.6115]
[1735532415599,2.6111,191.96,191.93,4.66428667]
[1735532415805,2.6111,191.96,191.92,2.6115]
[1735532416004,2.6111,191.96,191.93,4.66402223]
[1735532416205,2.6109,191.97,191.93,8.37826675]
[1735532416701,2.6108,191.98,191.94,2.6113]
[1735532416903,8.37826675,192.01,191.93,8.37826675]
[1735532417099,8.37826675,192.01,191.95,8.37826675]
[1735532417403,2.6107,191.99,191.95,8.37826675]
[1735532418006,2.6107,191.99,191.95,10.98946675]
[1735532418501,2.6107,191.99,191.95,8.37826675]
[1735532419407,2.6112,191.95,191.93,1.5879]
[1735532420304,2.6113,191.94,191.93,1.5879]
[1735532421105,2.6116,191.92,191.9,8.37826675]
[1735532421710,8.37826675,191.97,191.85,1.5519]
[1735532421909,2.6117,191.91,191.89,8.37826675]
[1735532422301,2.6116,191.92,191.89,8.37826675]
[1735532428307,2.6114,191.94,191.91,8.37826675]
[1735532428907,2.6115,191.93,191.91,8.37826675]
[1735532430709,8.37826675,191.97,191.89,8.37826675]
[1735532431310,2.6117,191.92,191.89,8.37826675]
[1735532431711,8.37826675,191.97,191.89,8.37826675]
[1735532432802,2.6117,191.92,191.89,8.37826675]
[1735532434011,2.6115,191.93,191.89,8.37826675]
[1735532435510,2.6115,191.93,191.89,10.99026675]
[1735532437918,2.6111,191.96,191.91,10.98986675]
[1735532438214,2.6111,191.96,191.93,8.37826675]
[1735532439313,2.611,191.97,191.93,10.98966675]
[1735532439512,8.37826675,192.0,191.93,8.37826675]
[1735532440015,2.6113,191.95,191.93,8.37826675]
[1735532440212,8.37826675,191.98,191.93,8.37826675]
[1735532440417,8.37826675,191.98,191.91,8.37826675]
[1735532441019,8.37826675,191.96,191.89,8.37826675]
[1735532441414,2.6118,191.91,191.89,8.37826675]
[1735532441917,8.37826675,191.96,191.89,8.37826675]
[1735532442218,8.37826675,191.92,191.85,4.5119]
[1735532442415,8.37826675,191.92,191.86,13.03427259]
[1735532442614,8.37826675,191.92,191.86,8.37826675]
[1735532442920,8.37826675,191.9,191.83,2.96]
[1735532443114,8.37826675,191.9,191.84,4.65792456]
[1735532443318,2.6121,191.88,191.83,8.37826675]
[1735532443507,8.37826675,191.9,191.84,4.65812056]
[1735532443714,8.37826675,191.88,191.79,4.7794]
[1735532443913,8.37826675,191.88,191.81,8.37826675]
[1735532444112,8.37826675,191.88,191.82,4.65949524]
[1735532444314,8.37826675,191.88,191.81,8.37826675]
[1735532444613,8.37826675,191.88,191.82,4.66029971]
[1735532444820,8.37826675,191.88,191.83,4.66029971]
[1735532445014,8.37826675,191.88,191.81,8.37826675]
[1735532445215,8.37826675,191.88,191.82,4.66030564]
[1735532445417,8.37826675,191.88,191.81,8.37826675]
[1735532445710,8.37826675,191.88,191.82,4.65999667]
[1735532445914,8.37826675,191.88,191.83,4.65999306]
[1735532446115,8.37826675,191.88,191.81,8.37826675]
[1735532446317,8.37826675,191.88,191.82,4.65999306]
[1735532446516,2.6125,191.86,191.81,8.37826675]
[1735532446712,2.6125,191.86,191.82,4.65972934]
[1735532446917,2.6125,191.86,191.83,4.659954]
[1735532447118,2.6125,191.86,191.81,10.99126675]
[1735532447424,2.6126,191.85,191.82,8.75869472]
[1735532447724,8.37826675,191.88,191.81,8.37826675]
[1735532447919,8.37826675,191.88,191.82,4.66000846]
[1735532448118,2.6126,191.85,191.81,8.37826675]
[1735532448318,2.6126,191.85,191.82,4.66000837]
[1735532448519,2.6126,191.85,191.81,8.37826675]
[1735532448827,2.6128,191.84,191.82,4.6604629]
[1735532449129,8.37826675,191.86,191.79,9.99866675]
[1735532449424,8.37826675,191.84,191.8,4.6605988]
[1735532449721,2.6132,191.8,191.77,8.37826675]
[1735532450018,8.37826675,191.84,191.78,8.76035367]
[1735532450322,8.37826675,191.84,191.79,4.66085399]
[1735532450513,8.37826675,191.84,191.77,8.37826675]
[1735532450514,8.37826675,191.84,191.8,4.66085399]
[1735532450718,8.37826675,191.84,191.77,8.37826675]
[1735532451025,2.6129,191.83,191.78,8.76035084]
[1735532451224,8.37826675,191.84,191.79,4.66085875]
[1735532451524,8.37826675,191.84,191.77,8.37826675]
[1735532451823,8.37826675,191.84,191.78,8.75964098]
[1735532452022,8.37826675,191.84,191.79,4.66048117]
[1735532452223,8.37826675,191.84,191.77,8.37826675]
[1735532452423,2.6131,191.82,191.78,8.75769881]
[1735532452623,8.37826675,191.84,191.77,8.37826675]
[1735532452825,8.37826675,191.84,191.78,4.65954595]
[1735532453025,8.37826675,191.84,191.77,8.37826675]
[1735532453220,8.37826675,191.84,191.78,4.6595478]
[1735532453522,8.37826675,191.84,191.79,4.65814155]
[1735532453723,8.37826675,191.84,191.77,8.37826675]
[1735532453923,8.37826675,191.84,191.78,4.65814155]
[1735532454225,2.6132,191.8,191.79,4.65814155]
[1735532454426,2.6132,191.8,191.77,8.37826675]
[1735532454725,2.6132,191.8,191.78,4.65705811]
[1735532454924,2.6132,191.8,191.77,8.37826675]
[1735532455120,2.6132,191.8,191.78,4.65705811]
[1735532455325,2.6132,191.8,191.77,8.37826675]
[1735532455528,2.6132,191.8,191.78,4.65576502]
[1735532455828,2.6132,191.8,191.77,8.37826675]
[1735532456029,2.6132,191.8,191.78,4.65576502]
[1735532456228,2.613,191.82,191.77,10.99186675]
[1735532456425,2.613,191.82,191.78,4.65456852]
[1735532456727,2.613,191.82,191.79,4.65456852]
[1735532456929,2.613,191.82,191.77,10.99186675]
[1735532457130,2.613,191.82,191.78,4.65452111]
[1735532457329,2.613,191.82,191.79,4.65452111]
[1735532457529,2.613,191.82,191.77,10.99186675]
[1735532457729,2.613,191.82,191.78,4.65356469]
[1735532458023,2.613,191.82,191.79,4.65356469]
[1735532458227,2.613,191.82,191.77,10.99186675]
[1735532458429,2.613,191.82,191.78,4.65278486]
[1735532458629,2.6128,191.83,191.79,10.99156675]
[1735532458831,8.37826675,191.85,191.79,8.37826675]
[1735532460426,2.6128,191.84,191.79,10.99156675]
[1735532460630,8.37826675,191.85,191.79,10.99156675]
[1735532461031,2.6128,191.83,191.79,8.37826675]
[1735532461231,8.37826675,191.85,191.79,8.37826675]
[1735532461432,8.37826675,191.85,191.77,8.37826675]
[1735532461627,2.6131,191.82,191.78,4.65239119]
[1735532461831,2.6131,191.82,191.77,10.99186675]
[1735532462028,8.37826675,191.85,191.78,4.65183986]
[1735532462228,8.37826675,191.85,191.77,10.99186675]
[1735532462633,8.37826675,191.83,191.75,10.99206675]
[1735532462833,8.37826675,191.83,191.76,4.65194527]
[1735532463138,8.37826675,191.83,191.75,10.99206675]
[1735532463335,8.37826675,191.83,191.76,4.65195009]
[1735532463528,2.6134,191.79,191.75,10.99206675]
[1735532463731,2.6134,191.79,191.76,4.65185849]
[1735532464026,8.37826675,191.81,191.75,8.37826675]
[1735532464227,8.37826675,191.81,191.73,12.80696675]
[1735532464536,8.37826675,191.81,191.74,4.65255709]
[1735532464734,8.37826675,191.81,191.75,4.65255709]
[1735532465030,2.6138,191.76,191.73,9.84696675]
[1735532466042,2.6138,191.76,191.74,4.65109407]
[1735532466338,2.6138,191.76,191.73,1.4687]
[1735532468550,2.6138,191.76,191.72,14.10066675]
[1735532468952,2.6139,191.75,191.72,12.48856675]
[1735532469649,2.6139,191.75,191.72,1.496]
[1735532470644,8.37826675,191.77,191.72,1.496]
[1735532470848,2.6141,191.74,191.72,1.496]
[1735532471353,2.6137,191.77,191.73,2.6141]
[1735532471549,2.6137,191.77,191.73,10.99236675]
[1735532471957,2.6138,191.76,191.73,10.99236675]
[1735532472752,2.6138,191.76,191.73,8.37826675]
[1735532473855,2.6139,191.75,191.72,1.496]
[1735532474154,8.37826675,191.77,191.72,1.496]
[1735532474356,2.6141,191.74,191.72,1.496]
[1735532485657,2.6139,191.75,191.72,1.496]
[1735532488057,2.6142,191.73,191.72,1.496]
[1735532488963,2.6143,191.72,191.71,5.16742291]
[1735532489163,2.6143,191.72,191.71,9.82669879]
[1735532490359,2.6143,191.72,191.71,5.16742291]
[1735532490564,2.6143,191.72,191.71,9.82836132]
[1735532491964,2.6142,191.73,191.71,9.82836132]
[1735532492164,2.6142,191.73,191.71,5.16742291]
[1735532493567,2.6142,191.73,191.72,4.66407555]
[1735532494063,2.6142,191.73,191.72,4.66419405]
[1735532495866,2.6143,191.72,191.71,5.16742291]
[1735532496166,2.6143,191.72,191.71,13.93579955]
[1735532496768,2.6143,191.72,191.71,13.93565716]
[1735532499768,2.6143,191.72,191.71,5.16742291]
[1735532499967,2.6143,191.72,191.71,13.93794968]
[1735532502172,33.27832756,191.81,191.71,13.93794968]
[1735532502372,8.37826675,191.79,191.72,8.77052677]
[1735532502573,8.37826675,191.79,191.73,8.77052677]
[1735532502777,2.6139,191.76,191.74,4.66634049]
[1735532502975,2.6139,191.76,191.72,2.6142]
[1735532503274,8.37826675,191.79,191.73,17.15669775]
[1735532503275,2.6136,191.78,191.73,17.15669775]
[1735532503469,2.6136,191.78,191.74,8.78097221]
[1735532503666,2.6136,191.78,191.75,4.67188111]
[1735532503865,2.6136,191.78,191.73,8.37826675]
[1735532504071,2.6136,191.78,191.74,8.78156411]
[1735532504272,2.6138,191.76,191.75,4.67219595]
[1735532504568,8.37826675,191.77,191.71,16.50568966]
[1735532504772,8.37826675,191.77,191.72,8.78789602]
[1735532505069,8.37826675,191.77,191.73,4.1122917]
[1735532505273,8.37826675,191.77,191.74,4.67539865]
[1735532505575,2.6141,191.74,191.71,16.50568966]
[1735532505775,2.6141,191.74,191.72,8.78701341]
[1735532506081,2.6141,191.74,191.73,8.78694598]
[1735532509071,2.6141,191.74,191.73,4.67506311]
[1735532509276,2.6141,191.74,191.73,8.79260896]
[1735532509679,2.6141,191.74,191.73,4.67506311]
[1735532512173,2.6143,191.73,191.71,5.16742291]
[1735532512378,2.6143,191.73,191.72,8.8006727]
[1735532512778,2.6139,191.75,191.72,8.80264307]
[1735532512982,8.37826675,191.76,191.73,4.68345027]
[1735532513178,8.37826675,191.76,191.74,4.68345027]
[1735532513374,2.6139,191.75,191.71,13.54568966]
[1735532513680,8.37826675,191.78,191.72,8.80083372]
[1735532513881,2.6138,191.76,191.73,8.80083372]
[1735532514089,2.6138,191.76,191.74,8.80083372]
[1735532514275,2.6138,191.76,191.75,8.80083372]
[1735532514581,2.6138,191.76,191.75,8.80028272]
[1735532515478,2.6138,191.76,191.75,8.80305038]
[1735532518381,2.6138,191.76,191.72,2.6143]
[1735532518683,2.6138,191.76,191.73,8.80529721]
[1735532518879,2.6138,191.76,191.74,8.80529721]
[1735532519078,2.6138,191.76,191.75,8.80529721]
[1735532519382,10.99206675,191.76,191.75,4.68483087]
[1735532519982,10.99206675,191.76,191.75,8.80551605]
[1735532520185,2.6138,191.76,191.75,8.80551605]
[1735532521081,8.37826675,191.78,191.75,8.80553681]
[1735532521281,8.37826675,191.78,191.76,4.68495765]
[1735532521480,2.614,191.75,191.71,5.16742291]
[1735532521685,8.37826675,191.76,191.72,8.80548354]
[1735532521884,8.37826675,191.76,191.73,8.80548354]
[1735532522073,8.37826675,191.76,191.74,8.80548354]
[1735532522381,10.99206675,191.76,191.75,8.80548354]
[1735532523079,10.99206675,191.76,191.75,4.68493032]
[1735532523276,10.99206675,191.76,191.75,4.68513581]
[1735532523889,10.99206675,191.76,191.75,4.68513772]
[1735532525397,2.6138,191.76,191.75,4.68513772]
[1735532525591,2.6138,191.76,191.75,8.80582843]
[1735532529790,2.6138,191.76,191.73,2.6141]
[1735532529998,2.6138,191.76,191.75,8.80314453]
[1735532530591,2.6138,191.76,191.75,8.80300888]
[1735532531398,2.6137,191.77,191.75,8.80300888]
[1735532531595,2.6137,191.77,191.76,8.80300888]
[1735532532195,2.6137,191.77,191.76,4.68360703]
[1735532532394,2.6137,191.77,191.76,8.80259642]
[1735532533202,2.6137,191.77,191.73,2.6141]
[1735532533404,8.37826675,191.79,191.74,8.80165927]
[1735532533596,2.6138,191.76,191.75,8.80165927]
[1735532536304,2.6138,191.76,191.73,2.6141]
[1735532536605,2.6138,191.76,191.74,8.80102649]
[1735532536900,2.6138,191.76,191.75,8.80102649]
[1735532537799,8.37826675,191.79,191.75,8.80102649]
[1735532538099,8.37826675,191.82,191.76,8.80102649]
[1735532538302,8.37826675,191.82,191.77,8.80102649]
[1735532538502,2.6132,191.81,191.78,8.80102649]
[1735532538702,8.37826675,191.82,191.79,8.80102649]
[1735532538902,8.37826675,191.82,191.8,4.68255067]
[1735532539099,8.37826675,191.82,191.76,8.37826675]
[1735532539100,8.37826675,191.82,191.81,4.68255067]
[1735532539305,10.99116675,191.82,191.81,4.68255067]
[1735532540104,2.6132,191.8,191.76,10.99206675]
[1735532540305,8.37826675,191.82,191.77,8.79217204]
[1735532540504,8.37826675,191.82,191.78,8.79217204]
[1735532540505,2.6134,191.79,191.78,8.79217204]
[1735532540708,2.6134,191.79,191.78,4.67780337]
[1735532542198,2.6134,191.79,191.78,8.79250912]
[1735532542696,2.6134,191.79,191.78,8.7925216]
[1735532542903,2.6131,191.81,191.78,8.79221078]
[1735532543101,2.6131,191.81,191.79,4.67780337]
[1735532543296,2.6131,191.81,191.77,2.6136]
[1735532543502,2.6131,191.81,191.78,8.79222686]
[1735532543701,2.6131,191.81,191.79,4.67784507]
[1735532544008,2.6131,191.81,191.77,2.6136]
[1735532544210,2.6131,191.81,191.78,8.79092159]
[1735532544505,2.6131,191.81,191.79,8.79092159]
[1735532544708,2.6131,191.81,191.8,4.67714188]
[1735532545700,2.6131,191.81,191.77,2.6136]
[1735532545904,2.6131,191.81,191.78,8.78785438]
[1735532546105,2.6131,191.81,191.79,8.78785438]
[1735532546307,8.37826675,191.81,191.75,8.37826675]
[1735532546509,8.37826675,191.81,191.76,8.78869374]
[1735532546510,2.6134,191.79,191.76,8.78869374]
[1735532546709,8.37826675,191.81,191.77,8.78869374]
[1735532546911,8.37826675,191.81,191.78,4.67596834]
[1735532547108,2.6135,191.78,191.75,2.6139]
[1735532547309,2.6135,191.78,191.76,8.78868234]
[1735532547513,2.6135,191.78,191.77,8.78868234]
[1735532547810,2.6135,191.78,191.77,4.67596381]
[1735532548204,2.6135,191.78,191.77,8.78850497]
[1735532548713,2.6135,191.78,191.77,4.67596381]
[1735532549008,2.6135,191.78,191.77,4.67575877]
[1735532549208,2.6135,191.78,191.74,4.1247]
[1735532549405,2.6135,191.78,191.75,8.78828174]
[1735532549605,2.6135,191.78,191.76,8.78828174]
[1735532549901,2.6135,191.78,191.77,4.67575877]
[1735532550907,2.6135,191.78,191.77,4.67579952]
[1735532552114,2.6135,191.78,191.77,4.67576549]
[1735532555114,2.6137,191.77,191.74,1.5107]
[1735532555411,2.6137,191.77,191.75,8.78917425]
[1735532555612,2.6137,191.77,191.76,8.78917425]
[1735532558210,8.37826675,191.79,191.76,8.79338601]
[1735532558406,2.6135,191.78,191.77,4.67847948]
[1735532558612,8.37826675,191.79,191.74,1.5107]
[1735532558813,2.6138,191.77,191.75,8.79392536]
[1735532559013,2.6138,191.77,191.76,8.79392536]
[1735532560306,2.6138,191.77,191.76,8.79450414]
[1735532561420,2.6138,191.77,191.76,8.79462558]
[1735532564421,8.37826675,191.79,191.74,1.5107]
[1735532564622,2.6138,191.76,191.75,8.79598285]
[1735532567621,2.6138,191.76,191.75,4.11611522]
[1735532567824,2.6138,191.76,191.75,8.79687212]
[1735532568326,2.6138,191.76,191.75,8.79786555]
[1735532570227,2.6136,191.78,191.75,8.79786555]
[1735532570427,2.6136,191.78,191.76,8.79786555]
[1735532570729,2.6136,191.78,191.77,8.79786555]
[1735532573831,2.6136,191.78,191.74,1.5107]
[1735532573832,8.37826675,191.81,191.74,1.5107]
[1735532574032,8.37826675,191.81,191.75,8.80105129]
[1735532574234,8.37826675,191.81,191.74,1.5107]
[1735532574235,8.37826675,191.81,191.76,8.80105129]
[1735532574529,2.6135,191.78,191.77,8.80105129]
[1735532577233,2.6138,191.76,191.74,1.5107]
[1735532577534,2.6138,191.76,191.75,4.68299066]
[1735532577729,2.6138,191.76,191.75,8.80187511]
[1735532578833,2.613,191.82,191.75,8.80187511]
[1735532579035,8.37826675,191.82,191.76,8.80187511]
[1735532579232,8.37826675,191.82,191.77,8.80187511]
[1735532579442,8.37826675,191.82,191.78,8.80187511]
[1735532579635,8.37826675,191.82,191.79,8.80187511]
[1735532579833,2.6131,191.81,191.8,4.68299066]
[1735532580231,2.6131,191.81,191.8,4.68299987]
[1735532582237,2.6131,191.81,191.76,2.94]
[1735532582238,8.37826675,191.82,191.76,2.94]
[1735532582434,2.6135,191.78,191.77,4.68319409]
[1735532582633,2.6135,191.78,191.77,8.80227082]
[1735532585438,2.6135,191.78,191.77,8.80346789]
[1735532586342,2.6135,191.78,191.77,4.68439116]
[1735532589341,2.6139,191.76,191.72,9.92226675]
[1735532589643,2.6139,191.76,191.73,8.80301229]
[1735532589833,2.6139,191.75,191.74,8.80301229]
[1735532590242,2.6139,191.75,191.74,8.80418043]
[1735532592543,8.37826675,191.79,191.74,8.80418043]
[1735532592744,8.37826675,191.79,191.75,8.80418043]
[1735532592944,8.37826675,191.79,191.76,4.68423487]
[1735532593242,8.37826675,191.79,191.72,9.92226675]
[1735532593444,8.37826675,191.79,191.74,10.99216675]
[1735532593643,8.37826675,191.79,191.75,8.80346931]
[1735532593844,2.6136,191.78,191.76,8.80346931]
[1735532594041,2.6136,191.78,191.77,8.80346931]
[1735532594934,2.6136,191.78,191.77,8.80285264]
[1735532595341,2.6136,191.78,191.77,4.6835101]
[1735532595537,2.6136,191.78,191.77,8.80285502]
[1735532597947,2.6136,191.78,191.77,4.6835101]